Cogmind - Beta 10.2 @@@ ROGUE MODE // 2021.02.14 @ 03:15:28 Player: gammafunk Result: Self-destructed Performance ------------- Evolutions (3) 1500 Regions Visited (7) 1400 Robots Destroyed (69) 345 Value Destroyed (1746) 1746 Prototype IDs (9) 180 Alien Tech Used (0) 0 Bonus (478) 478 TOTAL SCORE: 5649 Bonus ------- High Alert Combat Kills 2 Follower Combat Kills 476 Cogmind --------- Core Integrity 599/700 Matter 37/300 Energy 280/280 System Corruption 0% Temperature Cool (0) Movement Core (150) Ox2 Location -7/Factory Parts ------- > --- POWER (2) -------- Heavy Ion Engine > --- PROPULSION (2) --- (None) > --- UTILITY (5) ------ Advanced Terrain Scanner Advanced Targeting Computer > --- WEAPON (4) ------- (None) > --- INVENTORY (4) ---- Armored Treads Shock Bomb Launcher Mini Grenade Launcher Missile Launcher Peak State ------------ > --- POWER ------------ Heavy Ion Engine Cooled Ion Engine > --- PROPULSION ------- Armored Treads Armored Treads > --- UTILITY ---------- Cooling System High-capacity Storage Unit Advanced Terrain Scanner Advanced Targeting Computer Light Armor Plating > --- WEAPON ----------- Heavy Assault Rifle Enhanced Autogun Enhanced Autogun Advanced Assault Cannon > --- INVENTORY -------- Heavy Ion Engine Armored Treads Armored Treads High-capacity Storage Unit High-capacity Storage Unit Advanced Targeting Computer Improved EM Shotgun Heavy EM Shotgun Gatling Laser Shock Bomb Launcher Mini Grenade Launcher Missile Launcher [Rating: 39] Favorites ----------- Power Heavy Ion Engine Engine Heavy Ion Engine Power Core Nuclear Core Propulsion Armored Treads Treads Armored Treads Utility Cooling System Device Cooling System Storage High-capacity Storage Unit Processor Advanced Targeting Computer Protection Light Armor Plating Weapon Enhanced Autogun Energy Gun EM Shotgun Energy Cannon Light EM Pulse Cannon Ballistic Gun Enhanced Autogun Ballistic Cannon Advanced Assault Cannon Launcher Mini Grenade Launcher Build | -11 -10 -9 -8 -8 -7 -7 -7 ------- Run | Scr Mat Mat Mat Sto Fac Was Fac Slots Evolved 6 | . . 2 2 . 2 . . Power 1 | . . . 1 . . . . Propulsion . | . . . . . . . . Utility 3 | . . 1 . . 2 . . Weapon 2 | . . 1 1 . . . . Parts Attached 52 | 6 8 10 14 5 5 4 . Power 9 | 1 . 1 3 3 . 1 . Engine 8 | 1 . 1 2 3 . 1 . Core 1 | . . . 1 . . . . Reactor . | . . . . . . . . Propulsion 12 | 2 2 3 5 . . . . Treads 12 | 2 2 3 5 . . . . Leg . | . . . . . . . . Wheel . | . . . . . . . . Hover . | . . . . . . . . Flight . | . . . . . . . . Utility 12 | 1 2 3 1 . 4 1 . Device 2 | . 1 . . . 1 . . Storage 5 | 1 1 1 . . 1 1 . Processor 1 | . . . . . 1 . . Hackware . | . . . . . . . . Protection 4 | . . 2 1 . 1 . . Artifact . | . . . . . . . . Weapon 19 | 2 4 3 5 2 1 2 . Energy Gun 6 | 2 . 1 1 . . 2 . Energy Cannon 5 | . 3 1 1 . . . . Ballistic Gun 5 | . 1 . 2 2 . . . Ballistic Cannon 1 | . . . . . 1 . . Launcher 2 | . . 1 1 . . . . Special Weapon . | . . . . . . . . Impact Weapon . | . . . . . . . . Slashing Weapon . | . . . . . . . . Piercing Weapon . | . . . . . . . . Special Melee Weapon . | . . . . . . . . Unidentified Prototypes 4 | . . . 2 1 . 1 . Parts Lost 11 | . . 1 3 1 . 6 . Power 3 | . . . 1 . . 2 . Propulsion 1 | . . . . . . 1 . Utility 3 | . . . . 1 . 2 . Weapon 4 | . . 1 2 . . 1 . Highest Loss Streak 5 | . . 1 1 1 . 5 . Average Slot Usage (%) 95 | . 98 96 99 98 92 49 . Engine 15 | . 14 11 16 17 15 7 . Treads 19 | . 27 22 18 18 15 4 . Device 9 | . 13 11 9 9 9 9 . Storage 9 | . 14 11 9 9 7 2 . Protection 7 | . . 9 9 7 7 3 . Energy Gun 2 | . 1 4 4 . . 2 . Energy Cannon 8 | . 24 17 9 . . . . Ballistic Gun 14 | . 1 . 13 27 23 7 . Launcher 6 | . . 8 8 9 . . . Naked Turns . | . . . . . . . . Heaviest Build 70 | 13 47 55 66 63 70 70 . Greatest Support 40 | 40 40 40 40 40 40 40 . Greatest Overweight (x) 4 | . 4 1 1 1 1 2 . Average Overweight (x) . | . . 1 1 1 1 1 . Largest Inventory Capacity 20 | 6 12 12 12 12 20 12 . Average Capacity 11 | 5 8 12 12 12 12 7 . Most Carried 12 | 1 8 12 12 12 12 12 . Average Carried 10 | . 5 11 11 11 11 6 . Final Capacity 12 | 6 12 12 12 12 12 4 4 Final Carried 12 | 1 8 12 12 12 12 4 4 Class Distribution -------------------- 46% | Tank 41% | Mutant 11% | Gunner Dominant Class ---------------- Mutant | -10/Materials Mutant | -9/Materials Tank | -8/Materials Tank | -8/Storage Gunner | -7/Factory Mutant | -7/Waste Mutant | -7/Factory Resources | -11 -10 -9 -8 -8 -7 -7 -7 ----------- Run | Scr Mat Mat Mat Sto Fac Was Fac Matter Collected 1385 | 238 102 255 324 416 . 50 . Remotely . | . . . . . . . . Salvage Created 2877 | . 220 625 1069 460 . 503 . Parts 151 | . 8 45 62 35 . 1 . Haulers Intercepted 5 | . . . 4 1 . . . Recyclers Shooed 2 | . . 2 . . . . . Parts Field Recycled . | . . . . . . . . Retrieved Matter . | . . . . . . . . Parts Self-Destructed . | . . . . . . . . Prevented . | . . . . . . . . Kills | -11 -10 -9 -8 -8 -7 -7 -7 ------- Run | Scr Mat Mat Mat Sto Fac Was Fac Combat Hostiles Destroyed 48 | . 4 18 14 10 . 2 . Guns 17 | . . 4 4 9 . . . Cannons 11 | . 4 2 3 . . 2 . AOE 20 | . . 12 7 1 . . . Classes Destroyed 12 | . 2 7 2 . . 1 . Worker 4 | . . 3 1 . . . . Builder 2 | . . 1 1 . . . . Hauler 5 | . . . 4 1 . . . Recycler 5 | . . 2 2 1 . . . Watcher 5 | . 1 1 3 . . . . Swarmer 15 | . . 7 4 4 . . . Grunt 18 | . 4 7 5 2 . . . Brawler 2 | . . 1 1 . . . . Duelist 1 | . . 1 . . . . . Sentry 8 | . . 2 3 3 . . . Hunter 2 | . . . 1 1 . . . Compactor 2 | . . . . . . 2 . Best Kill Streak 6 | . 2 6 6 3 . 1 . Combat Bots Only 6 | . 2 6 4 3 . 1 . Max Kills in Single Turn 3 | . 1 3 2 2 . 1 . Gunslinging 1 | . . . . 1 . . . Exploded 3 | . . 3 2 1 . . . Melee . | . . . . . . . . Uniques/NPCs Destroyed . | . . . . . . . . Combat | -11 -10 -9 -8 -8 -7 -7 -7 -------- Run | Scr Mat Mat Mat Sto Fac Was Fac Damage Taken 1937 | . 121 492 540 550 . 234 . Core 273 | . 21 43 59 49 . 101 . Absorbed by Shields . | . . . . . . . . Core Remaining (%) 90 | 100 91 89 . 80 . . . Volleys Fired 150 | . 15 33 38 43 . 21 . Largest 4 | . 2 3 4 3 . 4 . Hottest 201 | . 112 142 146 73 . 201 . Shots Fired 356 | . 30 52 99 104 . 71 . Gun 223 | . 1 11 60 97 . 54 . Cannon 101 | . 29 25 30 . . 17 . Launcher 32 | . . 16 9 7 . . . Special . | . . . . . . . . Kinetic 194 | . . . 38 97 . 59 . Thermal 5 | . . . . . . 5 . Explosive 32 | . . 16 9 7 . . . Electromagnetic 125 | . 30 36 52 . . 7 . Robot Hit Streak 17 | . 6 17 12 11 . 13 . Robot Miss Streak 5 | . 4 2 4 5 . 2 . Penetration Max . | . . . . . . . . Secondary Targets 1 | . . . . 1 . . . Max Gunslinging Chain 1 | . . . . 1 . . . Shots Hit Robots 220 | . 16 31 57 56 . 60 . Core Hits 121 | . 6 38 39 24 . 14 . Critical Hits 3 | . . . 1 . . 2 . Critical Kills . | . . . . . . . . Critical Parts Destroyed . | . . . . . . . . Melee Attacks . | . . . . . . . . Impact . | . . . . . . . . Slashing . | . . . . . . . . Piercing . | . . . . . . . . Sneak Attacks . | . . . . . . . . Combat Hostiles . | . . . . . . . . Follow-up Attacks . | . . . . . . . . Damage Inflicted 5918 | . 378 1780 1614 984 . 1162 . Guns 2195 | . . 133 571 732 . 759 . Cannons 1697 | . 378 327 589 . . 403 . Explosions 2026 | . . 1320 454 252 . . . Melee . | . . . . . . . . Ramming . | . . . . . . . . Kinetic 2009 | . . . 274 732 . 1003 . Thermal 225 | . . . 80 . . 145 . Explosive 1946 | . . 1320 374 252 . . . Electromagnetic 1738 | . 378 460 886 . . 14 . Impact . | . . . . . . . . Slashing . | . . . . . . . . Piercing . | . . . . . . . . Highest Corruption . | . . . . . . . . Average Corruption . | . . . . . . . . Corruption Purged . | . . . . . . . . Overload Shots . | . . . . . . . . Overflow Damage 92 | . 14 21 57 . . . . Projectiles 52 | . 14 . 38 . . . . Explosions 40 | . . 21 19 . . . . Melee . | . . . . . . . . Knockbacks . | . . . . . . . . Impact . | . . . . . . . . Kinetic . | . . . . . . . . Secondary . | . . . . . . . . Self-Inflicted Damage 297 | . . 149 148 . . . . Shots 12 | . . 8 4 . . . . Rammed . | . . . . . . . . Targets Rammed . | . . . . . . . . Kicked . | . . . . . . . . Crushed . | . . . . . . . . Highest Temperature 108 | . 4 15 108 4 . 72 . Average Temperature 33 | . 1 5 39 4 . 34 . Received Heat Transfer 417 | . 69 114 108 117 . 9 . Siege Activations . | . . . . . . . . Robots Corrupted 1 | . . . 1 . . . . Combat Hostiles . | . . . . . . . . Parts Fried 13 | . 5 2 6 . . . . Impact Corruptions . | . . . . . . . . Robots Melted . | . . . . . . . . Combat Hostiles . | . . . . . . . . Parts Melted . | . . . . . . . . Heat Transferred 425 | . . . 100 . . 325 . Parts Sabotaged . | . . . . . . . . Parts Stolen . | . . . . . . . . Parts Stripped . | . . . . . . . . Power Chain Reactions 2 | . . . 2 . . . . Missiles Intercepted . | . . . . . . . . Alert | -11 -10 -9 -8 -8 -7 -7 -7 ------- Run | Scr Mat Mat Mat Sto Fac Was Fac Peak Influence 459 | . 112 304 451 459 220 77 . Initial 208 | . . 46 103 127 208 77 . Average 211 | . 21 125 310 293 212 30 . Maximum Alert Level 2 | . . 1 2 2 1 . . Low Security (%) 42 | 100 100 65 15 24 . 100 . Level 1 48 | . . 34 76 52 100 . . Level 2 9 | . . . 8 23 . . . Level 3 . | . . . . . . . . Level 4 . | . . . . . . . . Level 5 . | . . . . . . . . High Security . | . . . . . . . . Max Security . | . . . . . . . . Squads Dispatched 6 | . 2 2 . 2 . . . Investigation 2 | . 1 1 . . . . . Extermination . | . . . . . . . . Reinforcement 4 | . 1 1 . 2 . . . Assault . | . . . . . . . . Garrison . | . . . . . . . . Intercept . | . . . . . . . . Construction Impeded 1 | . . . . 1 . . . Haulers Reinforced . | . . . . . . . . Stealth | -11 -10 -9 -8 -8 -7 -7 -7 --------- Run | Scr Mat Mat Mat Sto Fac Was Fac Distress Signals 5 | . . 1 2 2 . . . Communications Jammed . | . . . . . . . . Distress Signals . | . . . . . . . . Times Spotted 102 | . 13 20 32 32 . 5 . Peak Tracking Total 8 | . 3 6 8 4 . 4 . Tactical Retreats 9 | . 4 . 1 3 . 1 . Traps | -11 -10 -9 -8 -8 -7 -7 -7 ------- Run | Scr Mat Mat Mat Sto Fac Was Fac Traps Triggered 3 | . 1 . . 1 1 . . Indirectly . | . . . . . . . . Trap Hack Attempts . | . . . . . . . . Triggered . | . . . . . . . . Disarmed . | . . . . . . . . Reprogrammed . | . . . . . . . . Reused . | . . . . . . . . Traps Extracted . | . . . . . . . . Installed . | . . . . . . . . Triggered 1 | . . . 1 . . . . Machines | -11 -10 -9 -8 -8 -7 -7 -7 ---------- Run | Scr Mat Mat Mat Sto Fac Was Fac Machines Disabled 5 | . . 1 2 2 . . . Max in Single Turn 1 | . . 1 1 1 . . . Machines Sabotaged . | . . . . . . . . Garrisons Compromised . | . . . . . . . . Overloaded Fab Kills . | . . . . . . . . Fab Network Shutdowns . | . . . . . . . . Hacking | -11 -10 -9 -8 -8 -7 -7 -7 --------- Run | Scr Mat Mat Mat Sto Fac Was Fac Machines Accessed 19 | . 4 5 5 4 1 . . Terminals 18 | . 4 4 5 4 1 . . Fabricators . | . . . . . . . . Repair Stations . | . . . . . . . . Recycling Units 1 | . . 1 . . . . . Scanalyzers . | . . . . . . . . Garrison Access . | . . . . . . . . Total Hacks 74 | . 21 16 17 16 4 . . Successful 42 | . 10 8 8 14 2 . . Failed 32 | . 11 8 9 2 2 . . Catastrophic 3 | . . 1 1 1 . . . Database Lockouts . | . . . . . . . . Manual 29 | . 9 8 5 7 . . . Terminals 72 | . 21 14 17 16 4 . . Fabricators . | . . . . . . . . Repair Stations . | . . . . . . . . Recycling Units 2 | . . 2 . . . . . Scanalyzers . | . . . . . . . . Garrison Access . | . . . . . . . . Terminal Hacks 38 | . 10 6 8 12 2 . . Record 12 | . 4 . 2 4 2 . . Robot Analysis 1 | . . . . 1 . . . Prototype ID Bank 3 | . 1 . 2 . . . . Branch Access Points 3 | . 1 1 1 . . . . Terminal Index 2 | . . 1 . 1 . . . Unreport Threat 4 | . 1 2 . 1 . . . Locate Traps 6 | . 1 . 2 3 . . . Hauler Manifests 1 | . . . 1 . . . . Registered Components 1 | . . 1 . . . . . Zone Layout 5 | . 2 1 . 2 . . . Fabricator Hacks . | . . . . . . . . Repair Station Hacks . | . . . . . . . . Recycling Unit Hacks 2 | . . 2 . . . . . Process 1 | . . 1 . . . . . Retrieve Components 1 | . . 1 . . . . . Scanalyzer . | . . . . . . . . Garrison Access Hacks . | . . . . . . . . Unauthorized Hacks 2 | . . . . 2 . . . Terminals 2 | . . . . 2 . . . Botnet 2 | . . . . 2 . . . Fabricators . | . . . . . . . . Repair Stations . | . . . . . . . . Recycling Units . | . . . . . . . . Scanalyzers . | . . . . . . . . Garrison Access . | . . . . . . . . Data Cores Recovered . | . . . . . . . . Used . | . . . . . . . . Hacking Detections 16 | . 4 4 4 3 1 . . Full Trace Events 3 | . 1 2 . . . . . Feedback Events . | . . . . . . . . Feedback Blocked . | . . . . . . . . Robot Schematics Acquired . | . . . . . . . . Robots Built . | . . . . . . . . Matter . | . . . . . . . . Time . | . . . . . . . . Total Robot Build Rating . | . . . . . . . . Part Schematics Acquired . | . . . . . . . . Parts Built . | . . . . . . . . Matter . | . . . . . . . . Time . | . . . . . . . . Total Part Build Rating . | . . . . . . . . Parts Repaired . | . . . . . . . . Time . | . . . . . . . . Parts Recycled . | . . . . . . . . Recycled Matter . | . . . . . . . . Retrieved Matter . | . . . . . . . . Retrieved Components 9 | . . 9 . . . . . Parts Scanalyzed . | . . . . . . . . Part Schematics Acquired . | . . . . . . . . Parts Damaged . | . . . . . . . . Bothacking | -11 -10 -9 -8 -8 -7 -7 -7 ------------ Run | Scr Mat Mat Mat Sto Fac Was Fac Used RIF Installer . | . . . . . . . . Robots Hacked . | . . . . . . . . Non-combat . | . . . . . . . . Combat . | . . . . . . . . Robot Hacks Applied . | . . . . . . . . Relay Couplers Released . | . . . . . . . . Robots Rewired . | . . . . . . . . Allies Hacked . | . . . . . . . . Hacks Repelled . | . . . . . . . . Allies | -11 -10 -9 -8 -8 -7 -7 -7 -------- Run | Scr Mat Mat Mat Sto Fac Was Fac Total Allies 3 | . . . . 2 . 1 . Largest Group 2 | . . . . 2 1 1 . Highest-Rated Group 112 | . . . . 112 94 31 . Highest-Rated Ally 99 | . . . . 99 94 31 . Total Orders . | . . . . . . . . Ally Attacks 79 | . . . . 55 . 24 . Total Damage 1840 | . . . . 1420 . 420 . Kills 16 | . . . . 16 . . . Allies Corrupted . | . . . . . . . . Allies Melted . | . . . . . . . . Intel | -11 -10 -9 -8 -8 -7 -7 -7 ------- Run | Scr Mat Mat Mat Sto Fac Was Fac Robot Analysis Total 1 | . . . . 1 . . . Derelict Logs Recovered . | . . . . . . . . Drone Launches . | . . . . . . . . Drone Recoveries . | . . . . . . . . Exploration | -11 -10 -9 -8 -8 -7 -7 -7 ------------- Run | Scr Mat Mat Mat Sto Fac Was Fac Turns Passed 5353 | 156 736 735 1602 1562 282 280 . Spaces Moved 2606 | 96 367 328 767 750 145 153 . Core 136 | 6 1 . . . . 129 . Treads 2470 | 90 366 328 767 750 145 24 . Legs . | . . . . . . . . Wheels . | . . . . . . . . Hover . | . . . . . . . . Flight . | . . . . . . . . Fastest Speed 50 | 50 160 180 180 190 190 50 . Average Speed 180 | 153 166 180 187 190 190 140 . Slowest Speed 250 | 160 250 180 190 190 190 190 . Overloaded Moves . | . . . . . . . . Propulsion Burnouts . | . . . . . . . . Robots Hopped . | . . . . . . . . Cave-ins Triggered . | . . . . . . . . Exploration Rate (%) 42 | 7 55 21 50 85 4 74 . Regions Visited 7 Branch Regions 1 Pre-discovered Areas 1 | . . . . 1 . . . Known Exits Taken 1 | . . . 1 . . . . Unknown Exits Taken 4 | 1 1 1 . 1 . . . Scrap Searched . | . . . . . . . . Spaces Dug 10 | . . 10 . . . . . Terrain Destroyed 240 | . . 96 79 65 . . . Melee . | . . . . . . . . Projectile . | . . . . . . . . AOE 240 | . . 96 79 65 . . . Terrain Rammed . | . . . . . . . . Walls Destroyed . | . . . . . . . . Machines Disabled . | . . . . . . . . Actions | -11 -10 -9 -8 -8 -7 -7 -7 --------- Run | Scr Mat Mat Mat Sto Fac Was Fac Total 3028 | 102 463 423 872 834 153 181 . Wait 162 | . 60 38 35 29 . . . Move 2600 | 95 366 327 766 749 145 152 . Hop . | . . . . . . . . Pick Up 29 | 1 8 7 8 2 1 2 . Fast Attach 20 | 6 6 2 2 1 2 1 . Attach 16 | . 1 2 6 1 3 3 . Detach 4 | . 2 . . . 2 . . Swap 16 | . 1 6 6 3 . . . Drop 31 | . 4 8 11 6 . 2 . Fire 150 | . 15 33 38 43 . 21 . Melee . | . . . . . . . . Ram . | . . . . . . . . Kick . | . . . . . . . . Crush . | . . . . . . . . Escape Stasis . | . . . . . . . . Rewire . | . . . . . . . . Trap . | . . . . . . . . Miscellaneous . | . . . . . . . . Route ------- -11/Scrapyard -10/Materials (discovered 4 exits: *Mat x2 / Min x2) -9/Materials (discovered 3 exits: *Mat / Min x2) -8/Materials -8/Storage -7/Factory -7/Waste -7/Factory History --------- Turn | Location | Event 31 | -11/Scrapyard | Discovered new exit (range 16) 157 | -11/Scrapyard | Entered Materials 320 | -10/Materials | Build established: Mutant 470 | -10/Materials | Identified exit to Mines 487 | -10/Materials | Discovered new exit (range 16) 614 | -10/Materials | Discovered new exit (range 13) 893 | -10/Materials | Entered another Materials area 893 | -9/Materials | Evolved 2 slots: Utility x1, Weapon x1 904 | -9/Materials | Identified exit to Mines 1622 | -9/Materials | Discovered new exit (range 3) 1628 | -9/Materials | Entered another Materials area 1628 | -8/Materials | Evolved 2 slots: Power x1, Weapon x1 2050 | -8/Materials | Identified exit to Storage 2157 | -8/Materials | Build established: Tank 3230 | -8/Materials | Entered Storage 3649 | -8/Storage | Learned location of Armory (-3) 3905 | -8/Storage | Met 01-MTF 4221 | -8/Storage | Discovered new exit (range 5) 4792 | -8/Storage | Entered Factory 4792 | -7/Factory | Accompanied by 1 ally (01-MTF) 4792 | -7/Factory | Evolved 2 slots: Utility x2 4797 | -7/Factory | 01-MTF left 4836 | -7/Factory | Build established: Gunner 5074 | -7/Factory | Sucked down chute 5074 | -7/Factory | Entered Waste 5075 | -7/Waste | Met a frightened Derelict 5109 | -7/Waste | Spotted C-40 Crusher 5124 | -7/Waste | Destroyed C-40 Crusher 5134 | -7/Waste | Spotted C-40 Crusher 5152 | -7/Waste | Crushed by Compactor (1 part destroyed, 2 dropped) 5155 | -7/Waste | Crushed by Compactor (1 part destroyed, 1 dropped) 5155 | -7/Waste | Destroyed C-40 Crusher 5176 | -7/Waste | Crushed by Compactor (1 part destroyed, 1 dropped) 5179 | -7/Waste | Crushed by Compactor (1 part destroyed, 2 dropped) 5182 | -7/Waste | Spotted C-40 Crusher 5182 | -7/Waste | Spotted C-40 Crusher 5210 | -7/Waste | Lost 5 parts (2p1n1u1w) 5216 | -7/Waste | Spotted C-40 Crusher 5225 | -7/Waste | Crushed by Compactor (1 part destroyed, 1 dropped) 5326 | -7/Waste | Discovered new exit (range 15) 5354 | -7/Waste | Entered Factory 5354 | -7/Factory | Self-destructed Last Messages --------------- Broken Imp. EM Pulse Cannon crushed. 3E-W3A(g) Carbon-fiber Leg crushed. 3E-W3A(g) Imp. Heat Sink crushed. 3E-W3A(g) Lgt. Angular Momentum Engine crushed. 3E-W3A(g) suffers critical hit. 3E-W3A(g) destroyed. Imp. Heat Sink crushed. Lgt. Armor Plating crushed. Hvy. EM Shotgun crushed. Acquired 50 matter. Dropped Mni. Grenade Launcher. Acquired Shock Bomb Launcher. Acquired Mni. Grenade Launcher. Acquired Hcp. Storage Unit. Dropped Hcp. Storage Unit. Adv. Coolant Injector crushed. EXIT=FOUND LOCATION=UNKNOWN GOAL=ESCAPE [Achievement: 5k Club] Map ----- +----------------------------------------------------+ | | | | | | | ?????????????????????????????????????????????????? | | ?????????????????????????????????????????????????? | | ?????????????????????????????????????????????????? | | ?????????????????????????????????????????????????? | | ?????????????????????????????????????????????????? | | ?????????????????????????????????????????????????? | | ?????????????????????????????????????????????????? | | ?????????????????????????????????????????????????? | | ?????????????????????????????????????????????????? | | ?????????????????????????????????????????????????? | | ?????????????????????????????????????????????????? | | ?????????????????????????????????????????????????? | | ?????????????????????????????????????????????????? | | ?????????????????????????????????????????????????? | | ?????????????????????????????????????????????????? | | ?????????????????????????????????????????????????? | | ?????????????????????????????????????????????????? | | ?????????????????????????????????????????????????? | | ?????????????????????????????????????????????????? | | ??????????????????????####+#############?????????? | | ??????????????????????# ????????? | | ??????????????????????# #???????????? | | ??????????????????????# @ #???????????? | | ??????????????????????# #???????????? | | ??????????????????????# #???????????? | | ??????????????????????########## #???????????? | | ?????????????????????????????????? #???????????? | | ?????????????????????????????????????#???????????? | | ?????????????????????????????????????????????????? | | ?????????????????????????????????????????????????? | | ?????????????????????????????????????????????????? | | ?????????????????????????????????????????????????? | | ?????????????????????????????????????????????????? | | ?????????????????????????????????????????????????? | | ?????????????????????????????????????????????????? | | ?????????????????????????????????????????????????? | | ?????????????????????????????????????????????????? | | ?????????????????????????????????????????????????? | | ?????????????????????????????????????????????????? | | ?????????????????????????????????????????????????? | | ?????????????????????????????????????????????????? | | ?????????????????????????????????????????????????? | | ?????????????????????????????????????????????????? | | ?????????????????????????????????????????????????? | | ?????????????????????????????????????????????????? | | ?????????????????????????????????????????????????? | | ?????????????????????????????????????????????????? | +----------------------------------------------------+ Best States ------------- Heat Dissipation 56 Energy Generation 23 Energy Capacity 460 Matter Stores 300 Matter Capacity 300 Sight Range 16 Terrain Scan Range 20 Terrain Scan Density 10 Armor Coverage 150 Evasion (%) 50 Targeting Accuracy 8 Recoil Reduction 2 Item Schematics ----------------- None Robot Schematics ------------------ None Fabricated ------------ Nothing Alien Tech Used ----------------- None Achievements -------------- 5k Club Librarian Made in Tau Ceti IV Novice Programmer One Hack Too Far Oops Power Corrupts Remodeling Risk Taker Shopping List True Hacker root@ Challenges ------------ None Game ------ Seed OmegaGreatArray Manual? 0 Play Time 01:03:27 Cumulative 2.8 hours Start 2021.02.09 @ 07:29:56 End 2021.02.14 @ 03:15:28 Sessions 7 Manual Loads 0 Difficulty Rogue Special Mode None Game No. 2 Rogue 2 Adventurer 0 Explorer 0 Win Type - Total 0 Types 0/0/0/0/0/0/0/0/0 Lore% 3 Gallery% 4 Achievement% 7 Wizard Run 0 Options --------- ASCII 0 Keyboard 1 Movement Vi Keybinds 0 Fullscreen 2 Font 12/Smallcaps Map View 60x54 Tactical HUD 0 Map Filters NONE Filters NONE Steam 0 RUN: 81fd9365-fa22-4914-9cf4-ef2ccb6e33b0